bitfinex-derivatives/quotes_SOLF0:USTF0_20240904
["timestamp","ask_amount","ask_price","bid_price","bid_amount"]
[1725469905510,0.05449065,133.57,133.54,0.05019888]
[1725469906218,0.05449065,133.57,133.56,3.7434]
[1725469906809,0.05449065,133.57,133.55,3.7436]
[1725469907117,17.23,133.56,133.45,7.4928]
[1725469907314,17.23,133.56,133.49,3.7451]
[1725469907315,17.23,133.54,133.49,3.7451]
[1725469907517,17.23,133.54,133.48,2.7147]
[1725469907711,22.3298,133.56,133.49,1.49786018]
[1725469908011,22.3298,133.56,133.49,5.28961579]
[1725469908212,22.3298,133.56,133.51,0.0488619]
[1725469908213,0.05709888,133.54,133.51,0.0488619]
[1725469908523,0.05709888,133.54,133.52,3.7443]
[1725469910627,0.05709888,133.54,133.51,3.7934619]
[1725469911715,3.80129888,133.54,133.51,3.7934619]
[1725469911920,0.05709888,133.54,133.52,3.7444]
[1725469913024,3.80109888,133.54,133.52,3.7444]
[1725469913320,3.80109888,133.54,133.51,3.7935619]
[1725469914222,0.05709888,133.54,133.51,0.0488619]
[1725469914421,21.59,133.52,133.51,0.0488619]
[1725469914926,25.3345,133.52,133.51,0.0488619]
[1725469916120,3.7445,133.52,133.51,0.0488619]
[1725469916327,3.7444,133.53,133.51,0.0488619]
[1725469918426,21.64709888,133.54,133.51,0.0488619]
[1725469919126,3.7444,133.53,133.51,0.0488619]
[1725469919830,3.7445,133.52,133.51,0.0488619]
[1725469920232,3.7444,133.53,133.51,0.0488619]
[1725469921024,3.7444,133.53,133.51,3.7936619]
[1725469923434,25.39109888,133.54,133.51,0.0488619]
[1725469923735,3.80109888,133.54,133.52,3.7445]
[1725469924930,3.80109888,133.54,133.51,0.0488619]
[1725469924931,0.05709888,133.54,133.51,0.0488619]
[1725469925133,3.7445,133.53,133.51,0.0488619]
[1725469925839,3.7445,133.53,133.51,3.7934619]
[1725469926027,3.80119888,133.54,133.51,3.7934619]
[1725469926227,3.80119888,133.54,133.51,0.0488619]
[1725469926832,0.05709888,133.54,133.51,0.0488619]
[1725469927029,0.05709888,133.54,133.51,21.6388619]
[1725469927230,3.7423,133.61,133.53,21.59]
[1725469927438,3.7423,133.61,133.53,25.33588076]
[1725469927943,25.6918,133.62,133.58,3.7427]
[1725469928143,3.7977901,133.61,133.59,0.05588486]
[1725469928946,3.7977901,133.61,133.59,3.79848486]
[1725469929944,0.0556901,133.61,133.6,3.7423]
[1725469930243,0.0556901,133.61,133.59,0.05588486]
[1725469930642,0.0556901,133.61,133.59,3.79828486]
[1725469930845,0.0556901,133.61,133.59,0.05588486]
[1725469931246,0.0556901,133.61,133.59,3.79828486]
[1725469931446,0.0556901,133.61,133.59,0.05588486]
[1725469931947,0.0556901,133.61,133.6,3.7423]
[1725469936846,0.0556901,133.61,133.59,3.79818486]
[1725469937048,0.0556901,133.61,133.59,0.05588486]
[1725469937850,0.0556901,133.61,133.6,3.7423]
[1725469945059,124.09964009,133.67,133.59,0.05588486]
[1725469945249,124.09964009,133.67,133.6,17.25]
[1725469945250,3.7408,133.66,133.6,17.25]
[1725469945763,3.7408,133.66,133.63,3.7413]
[1725469946052,3.7409,133.65,133.63,0.05074365]
[1725469947253,3.7409,133.65,133.63,3.79204365]
[1725469947460,3.7409,133.65,133.63,0.05074365]
[1725469948558,3.7409,133.65,133.63,3.79214365]
[1725469950260,3.79086847,133.66,133.64,3.7412]
[1725469950557,0.05016847,133.66,133.63,0.05074365]
[1725469950952,0.05016847,133.66,133.65,3.7409]
[1725469958461,0.05016847,133.66,133.65,20.9909]
[1725469958666,3.74102065,133.73,133.65,17.25]
[1725469958959,3.7389,133.72,133.67,17.25]
[1725469959466,17.25,133.73,133.69,3.7395]
[1725469959664,3.79057783,133.71,133.68,0.05138268]
[1725469960462,3.7395,133.7,133.68,0.05138268]
[1725469960862,0.05127783,133.71,133.68,3.79128268]
[1725469961365,17.25,133.7,133.68,0.05138268]
[1725469961570,18.6109,133.7,133.57,17.25]
[1725469961771,17.25,133.66,133.57,17.25]
[1725469961962,20.9909,133.66,133.62,3.7416]
[1725469962267,20.9909,133.66,133.57,17.25]
[1725469962268,20.9909,133.66,133.57,20.96016313]
[1725469962471,0.05181118,133.63,133.6,0.04892049]
[1725469962972,3.79331118,133.63,133.6,3.79102049]
[1725469963776,3.79331118,133.63,133.6,0.04892049]
[1725469964472,0.05181118,133.63,133.6,0.04892049]
[1725469965873,0.05181118,133.63,133.62,3.7417]
[1725469968684,1.4229,133.69,133.62,17.25]
[1725469969069,1.3609,133.7,133.62,17.25]
[1725469969571,5.1006,133.7,133.67,3.7403]
[1725469969772,5.15556355,133.7,133.67,3.7403]
[1725469970769,3.79466355,133.7,133.67,3.7403]
[1725469972177,3.7398,133.69,133.65,0.05299816]
[1725469972577,3.7398,133.69,133.67,3.7403]
[1725469973274,3.74,133.68,133.65,0.05299816]
[1725469973473,21.04676186,133.69,133.65,0.05299816]
[1725469973474,17.25,133.69,133.65,0.05299816]
[1725469973777,17.25,133.69,133.66,3.7404]
[1725469974079,3.80761082,133.68,133.66,3.7404]
[1725469974378,20.99,133.69,133.66,3.7404]
[1725469974781,24.71904938,133.69,133.66,3.7404]
[1725469976069,20.9898,133.69,133.67,3.7401]
[1725469976278,24.70986884,133.69,133.67,3.7401]
[1725469976867,20.9898,133.69,133.67,3.7401]
[1725469977474,0.05496355,133.7,133.69,3.7398]
[1725469989786,0.05496355,133.7,133.68,3.78974827]
[1725469990385,3.79446355,133.7,133.68,0.04984827]
[1725469991293,3.79446355,133.7,133.68,3.78984827]
[1725469994694,3.79446355,133.7,133.68,0.04984827]
[1725469994898,3.7398,133.69,133.68,0.04984827]
[1725469995602,3.79456355,133.7,133.68,0.04984827]
[1725469996507,3.79456355,133.7,133.68,3.78984827]
[1725469999413,7.39412962,133.69,133.68,0.04984827]
[1725469999610,3.7398,133.69,133.68,0.04984827]
[1725470003008,3.79446355,133.7,133.68,3.78964827]
[1725470003306,0.05496355,133.7,133.68,0.04984827]
[1725470003611,0.05496355,133.7,133.69,10.6298]
[1725470006011,0.05496355,133.7,133.69,3.7398]
[1725470006707,0.05496355,133.7,133.68,0.04984827]
[1725470007509,0.05496355,133.7,133.69,3.7398]
[1725470013014,0.05496355,133.7,133.68,0.04984827]
[1725470013716,3.79456355,133.7,133.68,3.78984827]
[1725470014121,3.79456355,133.7,133.68,0.04984827]
[1725470014819,3.7398,133.69,133.68,0.04984827]
[1725470015019,7.46819629,133.69,133.68,0.04984827]
[1725470015321,3.7398,133.69,133.68,0.04984827]
[1725470016325,3.79456355,133.7,133.68,0.04984827]
[1725470016525,0.05496355,133.7,133.68,0.04984827]
[1725470017813,0.05496355,133.7,133.69,3.7398]
[1725470018219,0.05496355,133.7,133.68,0.04984827]
[1725470018411,0.05496355,133.7,133.69,3.7398]
[1725470023818,0.05496355,133.7,133.69,20.9898]
[1725470025029,0.05496355,133.7,133.69,3.7398]
[1725470025228,0.05496355,133.7,133.68,3.78974827]
[1725470025427,0.05496355,133.7,133.68,0.04984827]
[1725470026028,10.68466355,133.7,133.68,0.04984827]
[1725470026230,6.94496355,133.7,133.68,0.04984827]
[1725470026534,14.36615033,133.69,133.68,0.04984827]
[1725470028031,3.73635033,133.69,133.68,0.04984827]
[1725470028235,0.05496355,133.7,133.68,0.04984827]
[1725470028738,3.7398,133.69,133.68,0.04984827]
[1725470030334,10.6298,133.69,133.68,0.04984827]
[1725470030742,14.37044651,133.69,133.68,0.04984827]
[1725470031535,10.6298,133.69,133.68,0.04984827]
[1725470032136,14.33565154,133.69,133.68,0.04984827]
[1725470032838,14.33565154,133.69,133.63,3.7413]
[1725470032839,3.7408,133.66,133.63,3.7413]
[1725470033139,10.59585154,133.69,133.57,3.71016313]
[1725470033140,6.89,133.64,133.57,6.89]
[1725470033337,6.89,133.63,133.56,6.89]
[1725470033946,3.79144594,133.61,133.58,3.79679355]
[1725470034432,0.04944594,133.61,133.6,3.7423]
[1725470034635,0.04944594,133.61,133.58,0.05409355]
[1725470035034,3.79164594,133.61,133.58,0.05409355]
[1725470035441,6.89,133.59,133.58,0.05409355]
[1725470035644,10.6326,133.59,133.58,0.05409355]
[1725470037142,14.39383258,133.59,133.58,0.05409355]
[1725470037942,3.7437,133.56,133.51,17.26]
[1725470038246,17.26,133.58,133.49,17.26]
[1725470038441,18.6261,133.58,133.49,17.26]
[1725470039145,0.04928805,133.55,133.52,0.04940669]
[1725470041644,3.744,133.54,133.52,0.04940669]
[1725470042342,3.7442,133.53,133.52,0.04940669]
[1725470043342,3.7442,133.53,133.45,23.83614082]
[1725470043343,3.7451,133.5,133.45,23.83614082]
[1725470043537,17.26,133.53,133.47,3.7457]
[1725470043737,17.26,133.53,133.45,23.83614082]
[1725470044242,3.745,133.51,133.47,3.7458]
[1725470044539,3.745,133.51,133.45,23.83614082]
[1725470044746,0.05533062,133.5,133.48,0.0481176]
[1725470045743,0.05533062,133.5,133.48,3.7936176]
[1725470046047,0.05533062,133.5,133.48,0.0481176]
[1725470046545,0.05533062,133.5,133.49,3.7454]
[1725470051260,116.45212691,133.58,133.49,17.26]
[1725470051652,3.7436,133.56,133.49,17.26]
[1725470051849,116.45212691,133.58,133.51,17.26]
[1725470052359,0.05573304,133.56,133.53,0.05611036]
[1725470053161,0.05573304,133.56,133.54,3.7438]
[1725470053365,0.05573304,133.56,133.53,0.05611036]
[1725470053754,0.05573304,133.56,133.54,3.7438]
[1725470055061,0.05573304,133.56,133.55,3.7437]
[1725470061868,0.05573304,133.56,133.54,3.7438]
[1725470062371,0.05573304,133.56,133.53,3.80021036]
[1725470062572,6.9,133.55,133.53,0.05611036]
[1725470063070,6.9,133.55,133.53,3.80011036]
[1725470064668,0.05573304,133.56,133.53,0.05611036]
[1725470065064,0.05573304,133.56,133.54,3.7438]
[1725470065370,6.95573304,133.56,133.54,3.7438]
[1725470065671,6.9,133.55,133.53,3.80021036]
[1725470067070,6.95573304,133.56,133.54,3.7438]
[1725470067480,10.69923304,133.56,133.53,3.80021036]
[1725470068271,6.95573304,133.56,133.53,3.80021036]
[1725470068869,6.95573304,133.56,133.54,3.7439]
[1725470069567,6.9,133.55,133.53,0.05611036]
[1725470069773,8.295,133.54,133.46,6.9]
[1725470070067,8.295,133.54,133.45,13.47614082]
[1725470070068,6.9,133.51,133.45,13.47614082]
[1725470070570,6.9,133.51,133.45,9.7488]
[1725470070776,0.05567466,133.49,133.47,0.04997567]
[1725470071178,0.05567466,133.49,133.48,3.7456]
[1725470071866,0.05567466,133.49,133.48,10.6456]
[1725470072272,0.05567466,133.49,133.48,3.7456]
[1725470076169,0.05567466,133.49,133.48,10.6456]
[1725470076369,6.9,133.55,133.51,3.7447]
[1725470076576,3.744,133.54,133.51,3.7447]
[1725470077576,3.80148973,133.54,133.51,3.79474078]
[1725470078173,10.70148973,133.54,133.51,3.79474078]
[1725470078676,3.7443,133.53,133.51,3.79474078]
[1725470078977,6.95748973,133.54,133.51,3.79474078]
[1725470079975,3.7443,133.53,133.51,3.79474078]
[1725470080175,6.95748973,133.54,133.52,3.7443]
[1725470080475,6.95748973,133.54,133.51,0.05004078]
[1725470080869,10.70158973,133.54,133.51,3.79464078]
[1725470082075,6.95748973,133.54,133.51,3.79464078]
[1725470082381,6.9,133.52,133.51,3.79464078]
[1725470084974,3.80158973,133.54,133.51,3.79464078]
[1725470085180,10.6445,133.52,133.51,0.05004078]
[1725470085381,0.05748973,133.54,133.51,0.05004078]
[1725470085679,10.6444,133.53,133.51,0.05004078]
[1725470086083,0.05748973,133.54,133.51,0.05004078]
[1725470086378,3.80148973,133.54,133.51,3.79464078]
[1725470087076,0.05748973,133.54,133.52,3.7445]
[1725470088582,3.80148973,133.54,133.52,3.7445]
[1725470090581,3.80148973,133.54,133.51,3.79484078]
[1725470091080,0.05748973,133.54,133.51,3.79484078]
[1725470091383,6.95748973,133.54,133.51,3.79484078]
[1725470091772,6.95748973,133.54,133.52,3.7445]
[1725470096274,6.95748973,133.54,133.51,0.05004078]
[1725470096474,0.05748973,133.54,133.53,3.7442]
[1725470099386,0.05748973,133.54,133.53,7.51545043]
[1725470099589,0.05748973,133.54,133.53,3.7442]
[1725470100081,0.05748973,133.54,133.53,7.47088893]
[1725470100287,0.05748973,133.54,133.53,3.7442]
[1725470100482,0.05748973,133.54,133.53,7.52893121]
[1725470100787,0.05748973,133.54,133.53,3.7442]
[1725470100995,94.00450976,133.58,133.56,3.7432]
[1725470101788,3.7423,133.6,133.55,6.9]
[1725470101980,0.05457944,133.59,133.56,6.9]
[1725470102181,0.05457944,133.59,133.56,6.95630616]
[1725470102386,0.05457944,133.59,133.57,3.7431]
[1725470102680,0.05457944,133.59,133.56,0.05630616]
[1725470103186,0.05457944,133.59,133.58,3.7428]
[1725470103380,0.05457944,133.59,133.58,10.6428]
[1725470104493,0.05457944,133.59,133.58,3.7428]
[1725470104786,0.05457944,133.59,133.56,0.05630616]
[1725470105585,3.79717944,133.59,133.56,3.79960616]
[1725470105887,6.9,133.57,133.56,0.05630616]
[1725470106293,10.6431,133.57,133.56,0.05630616]
[1725470106698,14.47787144,133.57,133.56,0.05630616]
[1725470107200,6.9,133.55,133.49,6.9]
[1725470107491,6.9,133.55,133.5,1.4977596]
[1725470107686,6.9,133.55,133.49,6.9]
[1725470108092,0.05713095,133.53,133.51,3.79962464]
[1725470108296,0.05713095,133.53,133.51,0.05512464]
[1725470108497,6.9,133.52,133.51,0.05512464]
[1725470110199,0.05713095,133.53,133.51,6.95512464]
[1725470110589,0.05713095,133.53,133.52,3.7445]
[1725470111191,0.05713095,133.53,133.51,0.05512464]
[1725470111997,6.9,133.52,133.51,0.05512464]
[1725470112491,10.6445,133.52,133.51,0.05512464]
[1725470113094,6.9,133.52,133.44,2.7516]
[1725470113298,6.9,133.48,133.4,1.3263]
[1725470113600,6.9,133.48,133.44,3.7466]
[1725470113991,0.05123745,133.47,133.45,0.0562104]
[1725470114303,0.05123745,133.47,133.45,3.8027104]
[1725470115098,0.05123745,133.47,133.45,0.0562104]
[1725470115398,3.79723745,133.47,133.45,0.0562104]
[1725470115899,0.05123745,133.47,133.45,0.0562104]
[1725470116403,0.05123745,133.47,133.46,21.0062]
[1725470117103,1.3123,133.56,133.5,3.7449]
[1725470117405,3.7441,133.54,133.5,3.7449]
[1725470117593,1.3123,133.56,133.5,3.7449]
[1725470117904,3.7442,133.54,133.5,3.7449]
[1725470118105,0.05743636,133.53,133.51,0.05360273]
[1725470118402,0.05743636,133.53,133.51,3.79830273]
[1725470118597,0.05743636,133.53,133.51,0.05360273]
[1725470118899,0.05743636,133.53,133.52,3.7445]
[1725470119100,0.05743636,133.53,133.51,0.05360273]
[1725470119796,0.05743636,133.53,133.51,3.79820273]
[1725470119994,0.05743636,133.53,133.51,0.05360273]
[1725470120298,0.05743636,133.53,133.52,3.7445]
[1725470120507,0.05743636,133.53,133.51,0.05360273]
[1725470121403,0.05743636,133.53,133.52,3.7445]
[1725470122307,0.05743636,133.53,133.51,3.79840273]
[1725470122704,0.05743636,133.53,133.51,0.05360273]
[1725470125396,0.05743636,133.53,133.52,3.7445]
[1725470131015,0.05743636,133.53,133.51,0.05360273]
[1725470131607,0.05743636,133.53,133.52,3.7445]
[1725470135112,0.05743636,133.53,133.52,21.0045]
[1725470135506,2.6397,133.6,133.57,3.743]
[1725470135711,1.3297,133.6,133.55,17.26]
[1725470136216,1.3297,133.6,133.57,3.743]
[1725470136610,1.37990589,133.6,133.57,3.79800192]
[1725470137317,1.37990589,133.6,133.57,0.05500192]
[1725470137816,3.7427,133.59,133.57,0.05500192]
[1725470138317,5.12230589,133.6,133.57,0.05500192]
[1725470139109,5.12230589,133.6,133.57,3.79810192]
[1725470139310,0.05020589,133.6,133.57,0.05500192]
[1725470139915,0.05020589,133.6,133.58,3.7427]
[1725470141814,3.79250589,133.6,133.58,3.7427]
[1725470142020,0.05020589,133.6,133.57,0.05500192]
[1725470142315,3.7427,133.59,133.57,0.05500192]
[1725470142512,0.05020589,133.6,133.57,0.05500192]
[1725470142716,0.05020589,133.6,133.57,3.79790192]
[1725470143015,3.79260589,133.6,133.57,3.79790192]
[1725470143710,0.05020589,133.6,133.58,3.7428]
[1725470144822,0.05020589,133.6,133.59,3.7426]
[1725470147416,3.82863147,133.64,133.63,3.7414]
[1725470147614,17.26,133.64,133.55,1.3659]
[1725470147815,3.7439,133.55,133.41,3.47866309]
[1725470148022,17.26,133.51,133.39,3.78256963]
[1725470148227,17.26,133.48,133.39,3.78256963]
[1725470148428,17.26,133.44,133.39,3.78256963]
[1725470148629,0.0576428,133.43,133.4,0.05322874]
[1725470148922,17.26,133.42,133.33,17.26]
[1725470149123,17.26,133.39,133.3,3.75]
[1725470149430,20.93063492,133.39,133.3,3.75]
[1725470149629,3.67063492,133.39,133.31,21.0104]
[1725470149832,17.26,133.4,133.31,17.26]
[1725470150127,2.7459,133.43,133.26,17.26]
[1725470150128,0.05369217,133.37,133.34,0.05694266]
[1725470150329,5.72296754,133.39,133.33,21.6]
[1725470150723,0.05296937,133.37,133.35,0.04934742]
[1725470151131,0.05296937,133.37,133.35,3.82925594]
[1725470152231,0.05296937,133.37,133.35,0.04934742]
[1725470152434,0.05296937,133.37,133.35,3.76100082]
[1725470152630,0.05296937,133.37,133.35,0.04934742]
[1725470153136,0.05296937,133.37,133.35,3.73476174]
[1725470154932,0.05296937,133.37,133.35,25.33476174]
[1725470155134,1.3521,133.43,133.35,25.33476174]
[1725470155341,21.6,133.46,133.37,21.6]
[1725470155637,5.72114817,133.45,133.38,3.7484]
[1725470155830,5.72114817,133.44,133.38,3.7484]
[1725470156028,5.72114817,133.43,133.38,3.7484]
[1725470156229,3.77727784,133.46,133.39,0.05604928]
[1725470156230,0.05543591,133.42,133.39,0.05604928]
[1725470158133,3.80283591,133.42,133.39,0.05604928]
[1725470158337,21.6,133.4,133.39,0.05604928]
[1725470159031,3.7479,133.4,133.39,0.05604928]
[1725470159538,5.72167565,133.41,133.39,0.05604928]
[1725470160539,3.7479,133.4,133.39,0.05604928]
[1725470161431,3.7478,133.41,133.39,0.05604928]
[1725470161635,0.05543591,133.42,133.39,0.05604928]
[1725470162136,3.7479,133.4,133.39,0.05604928]
[1725470162437,0.05543591,133.42,133.39,0.05604928]
[1725470162637,3.7478,133.41,133.39,0.05604928]
[1725470163743,3.80283591,133.42,133.39,0.05604928]
[1725470164549,3.7478,133.41,133.39,0.05604928]
[1725470165244,3.7479,133.4,133.39,0.05604928]
[1725470169049,24.3414,133.41,133.33,3.7498]
[1725470169257,21.6,133.39,133.33,3.7498]
[1725470169445,3.749,133.37,133.33,3.7498]
[1725470169641,25.29234804,133.39,133.32,3.75]
[1725470169853,21.6,133.37,133.28,24.3977]
[1725470170048,3.7496,133.34,133.33,0.05720745]
[1725470170251,0.05397287,133.36,133.33,0.05720745]
[1725470170749,3.7493,133.35,133.33,0.05720745]
[1725470170955,0.05397287,133.36,133.33,0.05720745]
[1725470171455,3.80317287,133.36,133.33,0.05720745]
[1725470171752,0.05397287,133.36,133.33,0.05720745]
[1725470171957,0.05397287,133.36,133.33,21.65720745]
[1725470172146,235.4904,133.5,133.33,21.65720745]
[1725470172147,1.3353,133.46,133.35,21.6]
[1725470172351,1.3353,133.46,133.37,21.6]
[1725470172963,5.72136074,133.45,133.37,21.6]
[1725470173147,0.05194897,133.42,133.4,3.80240422]
[1725470173352,0.05194897,133.42,133.4,0.05450422]
[1725470174452,3.79934897,133.42,133.4,0.05450422]
[1725470174649,0.05194897,133.42,133.4,0.05450422]
[1725470175254,0.05194897,133.42,133.4,3.80230422]
[1725470175651,0.05194897,133.42,133.4,7.54068596]
[1725470175953,0.05194897,133.42,133.4,0.05450422]
[1725470176259,0.05194897,133.42,133.4,3.80220422]
[1725470176657,0.05194897,133.42,133.4,7.60054998]
[1725470177561,0.05194897,133.42,133.4,3.80220422]
[1725470177764,0.05194897,133.42,133.41,3.7476]
[1725470178153,1.4088,133.52,133.41,21.6]
[1725470178359,23.0088,133.52,133.45,3.7463]
[1725470178556,9.4140856,133.51,133.45,3.7463]
[1725470178758,5.71992732,133.5,133.45,3.7463]
[1725470179258,5.71992732,133.5,133.45,7.58322142]
[1725470179463,0.05655864,133.49,133.46,0.04912306]
[1725470179857,3.80195864,133.49,133.46,0.04912306]
[1725470180259,3.80205864,133.49,133.46,0.04912306]
[1725470183057,0.05655864,133.49,133.46,0.04912306]
[1725470183762,3.80195864,133.49,133.46,0.04912306]
[1725470185661,0.05655864,133.49,133.46,0.04912306]
[1725470187363,0.05655864,133.49,133.47,3.7458]
[1725470187966,0.05655864,133.49,133.46,3.79522306]
[1725470188265,0.05655864,133.49,133.46,0.04912306]
[1725470188565,0.05655864,133.49,133.47,3.7457]
[1725470189468,0.05655864,133.49,133.47,3.7459]
[1725470189970,0.05655864,133.49,133.46,0.04912306]
[1725470190170,0.05655864,133.49,133.48,3.7456]
[1725470191671,0.05655864,133.49,133.47,3.7459]
[1725470191969,0.05655864,133.49,133.46,0.04912306]
[1725470192267,0.05655864,133.49,133.48,3.7456]
[1725470196669,0.05655864,133.49,133.47,3.7458]
[1725470197174,3.80205864,133.49,133.46,0.04912306]
[1725470197465,0.05655864,133.49,133.46,0.04912306]
[1725470197671,3.7459,133.47,133.46,0.04912306]
[1725470198471,1.46805864,133.49,133.46,0.04912306]
[1725470199973,23.04805864,133.49,133.46,0.04912306]
[1725470200174,3.7458,133.48,133.46,0.04912306]
[1725470200674,3.7459,133.47,133.46,0.04912306]
[1725470200870,3.7459,133.47,133.44,3.7466]
[1725470201070,3.7459,133.47,133.43,3.7468]
[1725470201475,3.7459,133.47,133.41,3.71458551]
[1725470201973,0.05018499,133.45,133.43,0.05748507]
[1725470202776,0.05018499,133.45,133.44,3.7468]
[1725470203775,0.05018499,133.45,133.43,3.80438507]
[1725470204372,21.63018499,133.45,133.35,1.3115]
[1725470204565,21.58,133.43,133.35,1.3115]
[1725470204768,1.3397,133.44,133.35,22.8915]
[1725470205166,1.3397,133.44,133.35,1.3115]
[1725470205370,1.3397,133.44,133.35,22.8915]
[1725470205570,0.05749423,133.41,133.38,0.0488518]
[1725470205777,0.05749423,133.41,133.4,3.7477]
[1725470207879,1.3397,133.47,133.43,3.747]
[1725470208377,1.3397,133.47,133.39,25.28500899]
[1725470208871,1.3397,133.47,133.42,0.05177751]
[1725470209078,0.05499376,133.44,133.43,3.7469]
[1725470213072,1.4041,133.52,133.48,3.7454]
[1725470213274,1.4041,133.52,133.45,21.58]
[1725470213775,5.1489,133.52,133.48,3.7456]
[1725470214386,3.79228183,133.51,133.49,0.04970518]
[1725470215383,0.04748183,133.51,133.49,0.04970518]
[1725470217784,3.79238183,133.51,133.49,0.04970518]
[1725470218881,0.04748183,133.51,133.49,0.04970518]
[1725470219585,3.79248183,133.51,133.49,0.04970518]
[1725470220279,3.7451,133.5,133.49,0.04970518]
[1725470220478,3.7451,133.5,133.41,1.3631]
[1725470220479,17.25,133.5,133.41,1.3631]
[1725470220684,17.25,133.5,133.4,17.25]
[1725470220986,17.25,133.5,133.42,17.25]
[1725470221186,17.25,133.48,133.41,3.81940071]
[1725470221386,0.04790278,133.46,133.43,0.04940099]
[1725470221979,0.04790278,133.46,133.45,3.7465]
[1725470223091,0.04790278,133.46,133.45,25.3165]
[1725470226394,0.04790278,133.46,133.45,3.7465]
[1725470226688,0.04790278,133.46,133.43,0.04940099]
[1725470227094,0.04790278,133.46,133.45,3.7465]
[1725470228995,0.04790278,133.46,133.43,0.04940099]
[1725470229795,0.04790278,133.46,133.45,3.7465]
[1725470230396,0.04790278,133.46,133.44,3.7467]
[1725470230893,0.04790278,133.46,133.43,21.61940099]
[1725470231195,0.04790278,133.46,133.45,3.7465]
[1725470233899,0.04790278,133.46,133.43,0.04940099]
[1725470234099,3.7468,133.44,133.43,0.04940099]
[1725470234396,1.374,133.45,133.41,3.7475]
[1725470234902,5.1206,133.45,133.41,3.7475]
[1725470235294,0.04748814,133.44,133.42,0.05610516]
[1725470235497,3.747,133.43,133.42,0.05610516]
[1725470235697,0.04748814,133.44,133.42,0.05610516]
[1725470236202,0.04748814,133.44,133.42,3.80340516]
[1725470236396,0.04748814,133.44,133.42,0.05610516]
[1725470236897,0.04748814,133.44,133.43,3.747]
[1725470237900,0.04748814,133.44,133.42,21.62610516]
[1725470238092,0.04748814,133.44,133.42,3.80340516]
[1725470238294,0.04748814,133.44,133.42,0.05610516]
[1725470238597,0.04748814,133.44,133.43,3.747]
[1725470242798,5.04644177,133.5,133.48,3.7455]
[1725470242799,1.3799,133.5,133.48,3.7455]
[1725470242999,2.8013,133.52,133.48,3.7455]
[1725470243293,3.745,133.51,133.45,21.57]
[1725470243996,0.04915895,133.49,133.47,3.79290567]
[1725470244202,0.04915895,133.49,133.47,3.79534114]
[1725470244402,0.04915895,133.49,133.47,0.04964114]
[1725470244703,0.04915895,133.49,133.48,3.7456]
[1725470245303,0.04915895,133.49,133.48,21.0156]
[1725470248405,0.04915895,133.49,133.47,0.04964114]
[1725470249009,0.04915895,133.49,133.48,21.0156]
[1725470250410,0.04915895,133.49,133.48,3.7456]
[1725470250610,0.04915895,133.49,133.47,17.31964114]
[1725470250611,0.04915895,133.49,133.47,0.04964114]
[1725470252309,0.04915895,133.49,133.48,3.7456]
[1725470263030,0.04915895,133.49,133.48,21.0156]
[1725470263232,2.8151,133.56,133.52,3.7445]
[1725470263426,2.8151,133.56,133.48,17.27]
[1725470264220,0.04828479,133.53,133.51,0.05206145]
[1725470264630,0.04828479,133.53,133.52,3.7445]
[1725470269838,0.04828479,133.53,133.52,21.0145]
[1725470271928,1.3238,133.57,133.52,17.27]
[1725470272128,1.3217,133.63,133.55,17.27]
[1725470272338,1.3217,133.63,133.59,17.27]
[1725470272339,6.44975042,133.63,133.59,17.27]
[1725470272636,6.44975042,133.63,133.58,3.7427]
[1725470273033,0.05317063,133.61,133.59,0.05427322]
[1725470273936,0.05317063,133.61,133.59,3.79667322]
[1725470274840,0.05317063,133.61,133.6,3.7423]
[1725470278638,2.7815,133.67,133.59,17.32427322]
[1725470278939,6.55788868,133.67,133.62,17.27]
[1725470279130,2.7815,133.67,133.62,17.27]
[1725470279338,10.19171103,133.67,133.63,3.7414]
[1725470279730,6.45121103,133.67,133.61,17.27]
[1725470280035,0.05601306,133.65,133.63,0.05654782]
[1725470280938,0.05601306,133.65,133.64,17.27]
[1725470281446,0.05601306,133.65,133.64,21.0112]
[1725470281942,0.05601306,133.65,133.64,24.6617501]
[1725470283342,0.05601306,133.65,133.63,3.79784782]
[1725470283842,0.05601306,133.65,133.63,0.05654782]
[1725470284230,0.05601306,133.65,133.59,17.27]
[1725470285339,0.05601306,133.65,133.61,0.04960324]
[1725470285838,3.7416,133.63,133.61,0.04960324]
[1725470286230,0.05601306,133.65,133.57,17.27]
[1725470286434,3.7419,133.62,133.58,3.7427]